Cogmind - Beta 13 @@@ ROGUE MODE // 2024.04.02 @ 13:45:01 Player: Eusmilis Result: Destroyed by P-70 Sage with High-powered Shock Rifle Performance ------------- Evolutions (5) 2500 Regions Visited (9) 1800 Robots Destroyed (59) 295 Value Destroyed (2245) 2245 Prototype IDs (0) 0 Alien Tech Used (0) 0 Bonus (0) 0 TOTAL SCORE: 6840 Bonus ------- None Cogmind --------- Core Integrity 0/1000 Matter 260/300 Energy 5/100 System Corruption 11% Temperature Cool (0) Movement Core (50) Location -5/Factory Parts ------- > --- POWER (4) -------- (None) > --- PROPULSION (4) --- (None) > --- UTILITY (5) ------ (None) > --- WEAPON (4) ------- (None) > --- INVENTORY (5) ---- Improved Heat Sink Remote Datajack Peak State ------------ > --- POWER ------------ Micro Nuclear Core > --- PROPULSION ------- Makeshift Hover Unit Makeshift Hover Unit Makeshift Hover Unit Antigrav System > --- UTILITY ---------- Advanced Heat Sink Energy Well Makeshift Transmission Jammer Improved Heavy Armor Plating > --- WEAPON ----------- Shock Rifle High-powered Shock Rifle Heavy Laser Gauss Cannon > --- INVENTORY -------- Improved Heat Sink Improved Targeting Computer Long-range Proton Cannon Heavy Flak Cannon Remote Datajack [Rating: 68] Favorites ----------- Power Ion Engine Engine Ion Engine Power Core Light Nuclear Core Propulsion Light Treads Treads Light Treads Wheel Wheel Hover Unit Makeshift Hover Unit Flight Unit Field Propulsion Drive Utility Large Storage Unit Device Terrain Scanner Storage Large Storage Unit Processor Improved Targeting Computer Protection Improved Medium Armor Plating Weapon Shotgun Energy Gun EM Pulse Gun Energy Cannon Particle Cannon Ballistic Gun Shotgun Ballistic Cannon Gauss Cannon Launcher Grenade Launcher Special Weapon Remote Datajack Build | -11 -10 -9 -9 -8 -7 -6 -6 -6 -5 ------- Run | Yrd Mat Mat Min Mat Fac Fac Low Low Fac Slots Evolved 10 | . . 2 . 2 2 2 . . 2 Power 3 | . . 1 . . 1 1 . . . Propulsion 2 | . . . . 1 . 1 . . . Utility 3 | . . . . . 1 . . . 2 Weapon 2 | . . 1 . 1 . . . . . Parts Attached 95 | 6 4 5 1 20 20 20 5 . 14 Power 15 | 1 . 1 . 4 7 1 . . 1 Engine 8 | 1 . 1 . 2 3 . . . 1 Core 7 | . . . . 2 4 1 . . . Reactor . | . . . . . . . . . . Propulsion 35 | 2 . 1 1 11 3 6 4 . 7 Treads 14 | 2 . 1 1 8 1 1 . . . Leg . | . . . . . . . . . . Wheel 9 | . . . . 3 2 1 . . 3 Hover 11 | . . . . . . 4 4 . 3 Flight 1 | . . . . . . . . . 1 Utility 15 | 1 2 . . 1 3 4 1 . 3 Device 5 | . 1 . . . . 3 1 . . Storage 4 | 1 1 . . . . 1 . . 1 Processor 1 | . . . . . . . . . 1 Hackware . | . . . . . . . . . . Protection 5 | . . . . 1 3 . . . 1 Artifact . | . . . . . . . . . . Weapon 30 | 2 2 3 . 4 7 9 . . 3 Energy Gun 12 | 2 . 2 . 1 2 4 . . 1 Energy Cannon 4 | . . . . 1 2 . . . 1 Ballistic Gun 6 | . 2 1 . 2 1 . . . . Ballistic Cannon 4 | . . . . . 1 2 . . 1 Launcher 3 | . . . . . 1 2 . . . Special Weapon 1 | . . . . . . 1 . . . Impact Weapon . | . . . . . . . . . . Slashing Weapon . | . . . . . . . . . . Piercing Weapon . | . . . . . . . . . . Special Melee Weapon . | . . . . . . . . . . Unidentified Prototypes . | . . . . . . . . . . Corrupted Parts 1 | . . . . . . . . . 1 System Corruption 5 | . . . . . . . . . 5 Parts Lost 56 | . 1 1 1 7 15 13 . . 18 Power 10 | . . . . 1 4 3 . . 2 Propulsion 17 | . . . 1 2 2 4 . . 8 Utility 7 | . . . . 1 3 2 . . 1 Weapon 22 | . 1 1 . 3 6 4 . . 7 Highest Loss Streak 11 | . 1 1 1 4 5 9 . . 11 To Critical Strikes . | . . . . . . . . . . Average Slot Usage (%) 80 | . 97 99 98 93 82 64 78 80 50 Engine 8 | . 14 21 22 8 12 3 . . . Core 4 | . . . . 9 5 6 6 6 2 Treads 13 | . 28 22 20 19 19 2 . . . Wheel 2 | . . . . 5 . 10 . . . Hover 5 | . . . . . . 6 24 26 11 Device 6 | . 11 11 11 6 . 4 13 13 5 Storage 7 | . 14 11 11 9 5 4 6 6 7 Protection 4 | . . . . 1 13 4 . . 2 Energy Gun 11 | . 7 19 22 9 5 12 20 20 8 Energy Cannon 2 | . . . . 7 3 . . . 1 Ballistic Gun 8 | . 19 12 11 15 6 3 . . . Ballistic Cannon 2 | . . . . . 3 1 6 6 3 Launcher 1 | . . . . . 4 . . . . Naked Turns 25 | . . . . . . . . . 25 Heaviest Build 64 | 14 32 39 38 47 59 52 36 36 64 Greatest Support 60 | 40 40 40 40 60 60 36 48 48 48 Greatest Overweight (x) 20 | . . . . 2 17 2 1 . 20 Average Overweight (x) . | . . . . . . . . . 2 Largest Inventory Capacity 20 | 8 15 15 15 15 15 5 5 5 20 Average Capacity 10 | 6 8 15 15 15 12 5 5 5 11 Most Carried 9 | 4 8 9 9 8 6 2 5 5 5 Average Carried 4 | 2 7 7 8 6 3 . 3 5 3 Final Capacity 15 | 8 15 15 15 15 5 5 5 5 5 Final Carried 9 | 4 8 9 9 6 . 2 5 5 2 Class Distribution -------------------- 23% | Mutant 17% | Scavenger-Tank 16% | Skirmisher 12% | Scavenger-Mutant 7% | Derelict-Gunner 7% | Scavenger-Gunner 6% | Derelict-Tank 5% | Scavenger-Skirmisher Dominant Class ---------------- Mutant | -10/Materials Skirmisher | -9/Materials Skirmisher | -9/Mines Scavenger-Skirmisher | -8/Materials Scavenger-Tank | -7/Factory Scavenger-Mutant | -6/Factory Derelict-Gunner | -6/Lower Caves Derelict-Gunner | -6/Lower Caves Mutant | -5/Factory Resources | -11 -10 -9 -9 -8 -7 -6 -6 -6 -5 ----------- Run | Yrd Mat Mat Min Mat Fac Fac Low Low Fac Matter Collected 1822 | 185 213 147 41 343 426 258 21 97 91 Remotely . | . . . . . . . . . . Salvage Created 2244 | . 138 195 173 626 527 354 . 84 147 Parts 119 | . 8 7 14 29 31 15 . 7 8 Haulers Intercepted . | . . . . . . . . . . Recyclers Shooed 2 | . . . . . 2 . . . . Parts Field Recycled . | . . . . . . . . . . Retrieved Matter . | . . . . . . . . . . Parts Self-Destructed 6 | . . . . . . . . 6 . Prevented 1 | . . . . . . . . 1 . Kills | -11 -10 -9 -9 -8 -7 -6 -6 -6 -5 ------- Run | Yrd Mat Mat Min Mat Fac Fac Low Low Fac Combat Hostiles Destroyed 53 | . 6 3 6 9 16 6 . 4 3 Guns 37 | . 6 3 6 6 10 5 . 1 . Cannons 11 | . . . . 3 3 . . 3 2 AOE 5 | . . . . . 3 1 . . 1 Classes Destroyed 8 | . 2 2 . 2 1 . . . 1 Builder 1 | . . . . . . . . . 1 Recycler 2 | . . . . 2 . . . . . Watcher 3 | . . 1 . . 1 1 . . . Swarmer 17 | . 3 . 3 . 7 . . 4 . Grunt 21 | . 3 . 3 4 5 6 . . . Sentry 11 | . . 3 . 4 3 . . . 1 Hunter 2 | . . . . 1 . . . . 1 Programmer 2 | . . . . . 1 . . . 1 Best Kill Streak 5 | . 5 1 3 3 4 2 . 4 1 Combat Bots Only 5 | . 5 1 3 3 4 2 . 4 1 Max Kills in Single Turn 2 | . 1 1 2 1 2 1 . 2 1 Gunslinging 1 | . . . 1 . . . . . . Exploded 1 | . . . . . 1 1 . . 1 Melee . | . . . . . . . . . . Uniques/NPCs Destroyed . | . . . . . . . . . . Combat | -11 -10 -9 -9 -8 -7 -6 -6 -6 -5 -------- Run | Yrd Mat Mat Min Mat Fac Fac Low Low Fac Hostile Shots Fired 708 | . 61 22 23 71 232 92 . 10 197 Missed 219 | . 16 7 1 17 75 30 . 3 70 Damage Taken 7713 | . 496 211 243 774 2092 1319 . 104 2474 Core 2266 | . 105 39 34 127 456 474 . 28 1003 Absorbed by Shields . | . . . . . . . . . . Core Remaining (%) 64 | 100 58 . 81 76 34 . . 40 . Volleys Fired 156 | . 23 8 9 34 38 25 . 3 16 Largest 4 | . 2 3 3 4 4 3 . 4 4 Hottest 232 | . 80 103 103 164 232 179 . 227 227 Shots Fired 379 | . 46 24 27 93 101 36 . 12 40 Gun 300 | . 46 24 27 77 55 34 . 9 28 Cannon 64 | . . . . 16 33 . . 3 12 Launcher 15 | . . . . . 13 2 . . . Special . | . . . . . . . . . . Kinetic 180 | . 44 8 9 50 46 10 . 3 10 Thermal 110 | . . . . 35 42 19 . 3 11 Explosive 15 | . . . . . 13 2 . . . Electromagnetic 74 | . 2 16 18 8 . 5 . 6 19 Robot Hit Streak 9 | . 7 8 6 9 5 8 . 1 4 Robot Miss Streak 9 | . 9 3 3 4 7 6 . 3 5 Penetration Max 1 | . . . . . . . . . 1 Secondary Targets 7 | . 1 . 3 1 1 1 . . . Max Gunslinging Chain 2 | . 1 . 2 1 1 1 . . . Shots Hit Robots 241 | . 30 14 16 62 71 25 . 3 20 Core Hits 166 | . 12 7 10 29 59 36 . 4 9 Critical Kills . | . . . . . . . . . . Critical Parts Destroyed . | . . . . . . . . . . Critical Strikes 8 | . . . . 3 1 2 . 1 1 Burn 5 | . . . . 2 1 2 . . . Blast 2 | . . . . . . . . 1 1 Corrupt 1 | . . . . 1 . . . . . Melee Attacks . | . . . . . . . . . . Impact . | . . . . . . . . . . Slashing . | . . . . . . . . . . Piercing . | . . . . . . . . . . Sneak Attacks . | . . . . . . . . . . Combat Hostiles . | . . . . . . . . . . Follow-up Attacks . | . . . . . . . . . . Damage Inflicted 4787 | . 489 204 260 940 1348 711 . 100 735 Guns 3085 | . 489 203 260 735 618 540 . 20 220 Cannons 953 | . . . . 205 416 12 . 80 240 Explosions 705 | . . . . . 309 121 . . 275 Melee . | . . . . . . . . . . Ramming 44 | . . 1 . . 5 38 . . . Kinetic 2207 | . 465 74 117 526 543 199 . 80 203 Thermal 1204 | . . . . 348 491 253 . . 112 Explosive 705 | . . . . . 309 121 . . 275 Electromagnetic 615 | . 24 129 143 66 . 88 . 20 145 Impact 12 | . . . . . . 12 . . . Slashing . | . . . . . . . . . . Piercing . | . . . . . . . . . . Highest Corruption 11 | . . . . . 1 5 5 5 11 Average Corruption 4 | . . . . . 1 4 5 5 6 Corruption Purged . | . . . . . . . . . . Corruption Blocked . | . . . . . . . . . . Effects 25 | . . . . . 1 6 4 4 10 Message Errors 5 | . . . . . 1 2 . 1 1 Matter Fused 8 | . . . . . . 3 2 1 2 Heat Flow Errors 7 | . . . . . . . 2 1 4 Energy Discharges 2 | . . . . . . 1 . 1 . Parts Rejected 1 | . . . . . . . . . 1 Data Loss (minor) 2 | . . . . . . . . . 2 Overload Shots . | . . . . . . . . . . Overflow Damage 98 | . . . . . 8 . . . 90 Projectiles 17 | . . . . . . . . . 17 Explosions 81 | . . . . . 8 . . . 73 Melee . | . . . . . . . . . . Knockbacks 6 | . . . . . 5 . . . 1 Impact . | . . . . . . . . . . Kinetic 6 | . . . . . 5 . . . 1 Secondary . | . . . . . . . . . . Self-Inflicted Damage 217 | . . . . . 92 14 . . 111 Shots 7 | . . . . . 5 . . . 2 Rammed 24 | . . 1 . . 1 22 . . . Targets Rammed 24 | . . 1 . . 1 22 . . . Kicked . | . . . . . . . . . . Crushed . | . . . . . . . . . . Highest Temperature 686 | . 18 123 408 508 686 141 233 269 277 Average Temperature 172 | . 4 49 187 195 228 44 119 133 96 Received Heat Transfer 1918 | . 210 120 138 288 324 396 . . 442 Effects 75 | . . . 1 17 57 . . . . Shutdowns 21 | . . . 1 3 17 . . . . Energy Bleed 5 | . . . . 1 4 . . . . Interference 9 | . . . . 3 6 . . . . Matter Decay 3 | . . . . 2 1 . . . . Short Circuit 5 | . . . . . 5 . . . . Damage (minor) 5 | . . . . 1 4 . . . . Damage (major) 24 | . . . . 7 17 . . . . Damage (core) 3 | . . . . . 3 . . . . Siege Activations . | . . . . . . . . . . Robots Corrupted . | . . . . . . . . . . Combat Hostiles . | . . . . . . . . . . Parts Fried 1 | . . 1 . . . . . . . Impact Corruptions . | . . . . . . . . . . Robots Melted . | . . . . . . . . . . Combat Hostiles . | . . . . . . . . . . Parts Melted 7 | . . . . 4 2 1 . . . Heat Transferred 2818 | . . . . 925 1079 629 . . 185 Parts Sabotaged . | . . . . . . . . . . Parts Stolen . | . . . . . . . . . . Parts Stripped . | . . . . . . . . . . Power Chain Reactions . | . . . . . . . . . . Alert | -11 -10 -9 -9 -8 -7 -6 -6 -6 -5 ------- Run | Yrd Mat Mat Min Mat Fac Fac Low Low Fac Peak Influence 261 | . 150 155 190 220 219 121 . . 261 Initial 81 | . . 8 60 74 59 81 . . 62 Average 86 | . 45 52 135 130 106 65 . . 82 Maximum Alert Level 1 | . . . . 1 1 . . . 1 Low Security (%) 87 | 100 100 100 100 71 81 100 . . 80 Level 1 12 | . . . . 28 18 . . . 19 Level 2 . | . . . . . . . . . . Level 3 . | . . . . . . . . . . Level 4 . | . . . . . . . . . . Level 5 . | . . . . . . . . . . High Security . | . . . . . . . . . . Max Security . | . . . . . . . . . . Squads Dispatched 11 | . 1 . . 1 5 3 . . 1 Investigation 1 | . . . . . 1 . . . . Extermination 3 | . . . . . 1 1 . . 1 Reinforcement 7 | . 1 . . 1 3 2 . . . Assault . | . . . . . . . . . . Garrison . | . . . . . . . . . . Intercept . | . . . . . . . . . . Searches Triggered . | . . . . . . . . . . Construction Impeded 2 | . . . . . 1 1 . . . Haulers Reinforced 1 | . . . . . . 1 . . . Active Scanning Responses . | . . . . . . . . . . Cargo Convoy Interrupts . | . . . . . . . . . . Stealth | -11 -10 -9 -9 -8 -7 -6 -6 -6 -5 --------- Run | Yrd Mat Mat Min Mat Fac Fac Low Low Fac Distress Signals 2 | . . 1 . . 1 . . . . Communications Jammed 16 | . . . . . . . . . 16 Distress Signals 16 | . . . . . . . . . 16 Times Spotted 83 | . 10 9 6 13 21 11 . 4 9 Peak Tracking Total 5 | . 3 5 3 4 4 5 . 4 4 Tactical Retreats 4 | . . . . 2 . . . . 2 Traps | -11 -10 -9 -9 -8 -7 -6 -6 -6 -5 ------- Run | Yrd Mat Mat Min Mat Fac Fac Low Low Fac Traps Triggered 4 | . . . . 1 1 2 . . . Indirectly . | . . . . . . . . . . Trap Hack Attempts . | . . . . . . . . . . Triggered . | . . . . . . . . . . Disarmed . | . . . . . . . . . . Reprogrammed . | . . . . . . . . . . Reused . | . . . . . . . . . . Traps Extracted . | . . . . . . . . . . Installed . | . . . . . . . . . . Triggered . | . . . . . . . . . . Machines | -11 -10 -9 -9 -8 -7 -6 -6 -6 -5 ---------- Run | Yrd Mat Mat Min Mat Fac Fac Low Low Fac Machines Disabled 6 | . . . . . 2 . . . 4 Max in Single Turn 2 | . . . . . 1 . . . 2 Machines Repaired . | . . . . . . . . . . Machines Dismantled . | . . . . . . . . . . Machines Sabotaged . | . . . . . . . . . . Overloaded Fab Kills . | . . . . . . . . . . Hacking | -11 -10 -9 -9 -8 -7 -6 -6 -6 -5 --------- Run | Yrd Mat Mat Min Mat Fac Fac Low Low Fac Machines Accessed 15 | . 2 2 . 4 4 1 1 . 1 Terminals 10 | . 2 1 . 2 3 1 . . 1 Fabricators . | . . . . . . . . . . Repair Stations 2 | . . 1 . . 1 . . . . Recycling Units 2 | . . . . 2 . . . . . Scanalyzers . | . . . . . . . . . . Garrison Access . | . . . . . . . . . . Total Hacks 30 | . 3 6 . 7 8 1 1 . 4 Successful 20 | . 2 3 . 5 6 . 1 . 3 Failed 10 | . 1 3 . 2 2 1 . . 1 Catastrophic 1 | . . . . . . 1 . . . Database Lockouts . | . . . . . . . . . . Manual . | . . . . . . . . . . Terminals 19 | . 3 3 . 3 5 1 . . 4 Fabricators . | . . . . . . . . . . Repair Stations 6 | . . 3 . . 3 . . . . Recycling Units 4 | . . . . 4 . . . . . Scanalyzers . | . . . . . . . . . . Garrison Access . | . . . . . . . . . . Terminal Hacks 14 | . 2 2 . 2 4 . 1 . 3 Record 8 | . . 2 . 2 1 . . . 3 Open Door 1 | . . . . . . . 1 . . Emergency Access Points 1 | . . . . . 1 . . . . Alert Level 3 | . 2 . . . 1 . . . . Zone Layout 1 | . . . . . 1 . . . . Fabricator Hacks . | . . . . . . . . . . Repair Station Hacks 3 | . . 1 . . 2 . . . . Scan Component 2 | . . 1 . . 1 . . . . Repair 1 | . . . . . 1 . . . . Recycling Unit Hacks 3 | . . . . 3 . . . . . Report Inventory 2 | . . . . 2 . . . . . Retrieve Components 1 | . . . . 1 . . . . . Scanalyzer . | . . . . . . . . . . Garrison Access Hacks . | . . . . . . . . . . Unauthorized Hacks . | . . . . . . . . . . Terminals . | . . . . . . . . . . Fabricators . | . . . . . . . . . . Repair Stations . | . . . . . . . . . . Recycling Units . | . . . . . . . . . . Scanalyzers . | . . . . . . . . . . Garrison Access . | . . . . . . . . . . Data Cores Recovered . | . . . . . . . . . . Used . | . . . . . . . . . . Hacking Detections 9 | . . 2 . 2 3 1 . . 1 Full Trace Events 1 | . . . . . 1 . . . . Feedback Events . | . . . . . . . . . . Feedback Blocked . | . . . . . . . . . . Robot Schematics Acquired . | . . . . . . . . . . Robots Built . | . . . . . . . . . . Authchips . | . . . . . . . . . . Time . | . . . . . . . . . . Total Robot Build Rating . | . . . . . . . . . . Part Schematics Acquired . | . . . . . . . . . . Parts Built . | . . . . . . . . . . Authchips . | . . . . . . . . . . Time . | . . . . . . . . . . Total Part Build Rating . | . . . . . . . . . . Parts Repaired . | . . . . . . . . . . Time 38 | . . . . . 38 . . . . Parts Recycled . | . . . . . . . . . . Recycled Matter . | . . . . . . . . . . Retrieved Matter . | . . . . . . . . . . Retrieved Components 2 | . . . . 2 . . . . . Parts Scanalyzed . | . . . . . . . . . . Part Schematics Acquired . | . . . . . . . . . . Parts Damaged . | . . . . . . . . . . Bothacking | -11 -10 -9 -9 -8 -7 -6 -6 -6 -5 ------------ Run | Yrd Mat Mat Min Mat Fac Fac Low Low Fac Used RIF Installer . | . . . . . . . . . . Robots Hacked . | . . . . . . . . . . Non-combat . | . . . . . . . . . . Combat . | . . . . . . . . . . Robot Hacks Applied . | . . . . . . . . . . Relay Couplers Released . | . . . . . . . . . . Fabnet Peak Effective % . | . . . . . . . . . . Robots Rewired . | . . . . . . . . . . Allies Hacked . | . . . . . . . . . . Hacks Repelled . | . . . . . . . . . . Allies | -11 -10 -9 -9 -8 -7 -6 -6 -6 -5 -------- Run | Yrd Mat Mat Min Mat Fac Fac Low Low Fac Total Allies . | . . . . . . . . . . Largest Group . | . . . . . . . . . . Highest-Rated Group . | . . . . . . . . . . Highest-Rated Ally . | . . . . . . . . . . Total Orders . | . . . . . . . . . . Ally Attacks . | . . . . . . . . . . Total Damage . | . . . . . . . . . . Kills . | . . . . . . . . . . Allies Corrupted . | . . . . . . . . . . Allies Melted . | . . . . . . . . . . Intel | -11 -10 -9 -9 -8 -7 -6 -6 -6 -5 ------- Run | Yrd Mat Mat Min Mat Fac Fac Low Low Fac Robot Analysis Total . | . . . . . . . . . . Derelict Logs Recovered 2 | . . . 1 . . . 1 . . Drone Launches . | . . . . . . . . . . Drone Recoveries . | . . . . . . . . . . Exploration | -11 -10 -9 -9 -8 -7 -6 -6 -6 -5 ------------- Run | Yrd Mat Mat Min Mat Fac Fac Low Low Fac Turns Passed 4327 | 70 508 373 192 611 935 593 243 150 652 Spaces Moved 2645 | 38 266 193 94 304 440 334 350 241 385 Core 65 | 2 . . . . 1 1 . . 61 Treads 1295 | 36 266 193 94 223 409 74 . . . Legs . | . . . . . . . . . . Wheels 309 | . . . . 81 30 116 . . 82 Hover 976 | . . . . . . 143 350 241 242 Flight . | . . . . . . . . . . Fastest Speed 50 | 50 160 160 160 93 105 56 50 58 50 Average Speed 134 | 154 160 160 160 153 169 132 66 58 149 Slowest Speed 1050 | 160 160 160 160 320 900 240 112 58 1050 Overloaded Moves . | . . . . . . . . . . Propulsion Burnouts . | . . . . . . . . . . Robots Hopped . | . . . . . . . . . . Cave-ins Triggered . | . . . . . . . . . . Exploration Rate (%) 23 | 3 41 19 14 26 15 12 49 41 13 Regions Visited 9 Branch Regions 3 Pre-discovered Areas 1 | . . . . . . . 1 . . Known Exits Taken . | . . . . . . . . . . Unknown Exits Taken 9 | 1 1 1 1 1 1 1 1 1 . Scrap Searched 3 | . . . . . . . 2 1 . Spaces Dug . | . . . . . . . . . . Terrain Destroyed 85 | . . . . . 52 10 . . 23 Melee . | . . . . . . . . . . Projectile 2 | . . . . . . . . . 2 AOE 83 | . . . . . 52 10 . . 21 Terrain Rammed . | . . . . . . . . . . Walls Destroyed . | . . . . . . . . . . Machines Disabled . | . . . . . . . . . . Actions | -11 -10 -9 -9 -8 -7 -6 -6 -6 -5 --------- Run | Yrd Mat Mat Min Mat Fac Fac Low Low Fac Total 3101 | 47 303 238 115 377 548 442 360 243 428 Wait 148 | . 6 28 11 14 46 35 . . 8 Move 2636 | 37 265 192 93 303 439 333 349 240 385 Hop . | . . . . . . . . . . Pick Up 20 | 4 2 4 1 1 1 3 2 . 2 Fast Attach 53 | 6 3 . . 4 10 17 3 . 10 Attach 25 | . . 4 1 7 8 1 . . 4 Detach 2 | . 2 . . . . . . . . Swap 17 | . 1 1 . 9 2 2 2 . . Drop 20 | . 1 . . 5 3 4 4 . 3 Fire 156 | . 23 8 9 34 38 25 . 3 16 Melee . | . . . . . . . . . . Ram 20 | . . . . . . 20 . . . Kick . | . . . . . . . . . . Crush 4 | . . 1 . . 1 2 . . . Escape Stasis . | . . . . . . . . . . Rewire . | . . . . . . . . . . Trap . | . . . . . . . . . . Miscellaneous . | . . . . . . . . . . Route ------- -11/Scrapyard -10/Materials -9/Materials -9/Mines -8/Materials -7/Factory -6/Factory -6/Lower Caves -6/Lower Caves -5/Factory History --------- Turn | Location | Event 7 | -11/Scrapyard | Discovered new exit (range 14) 71 | -11/Scrapyard | Entered Materials 276 | -10/Materials | Discovered new exit (range 14) 317 | -10/Materials | Build established: Mutant 579 | -10/Materials | Entered another Materials area 579 | -9/Materials | Evolved 2 slots: Power x1, Weapon x1 908 | -9/Materials | Discovered new exit (range 12) 952 | -9/Materials | Entered Mines 956 | -9/Mines | Build established: Skirmisher 1105 | -9/Mines | Learned Materials emergency access door positions 1112 | -9/Mines | Discovered new exit (range 8) 1144 | -9/Mines | Entered Materials 1144 | -8/Materials | Evolved 2 slots: Propulsion x1, Weapon x1 1263 | -8/Materials | Lost 4 parts (1n3w) 1721 | -8/Materials | Discovered new exit (range 8) 1755 | -8/Materials | Entered Factory 1755 | -7/Factory | Evolved 2 slots: Power x1, Utility x1 1855 | -7/Factory | Lost 3 parts (3w) 2407 | -7/Factory | Build established: Scavenger-Tank 2477 | -7/Factory | Lost 5 parts (2p1n1u1w) 2539 | -7/Factory | Core integrity fell below 50% 2681 | -7/Factory | Discovered new exit (range 9) 2690 | -7/Factory | Entered another Factory area 2690 | -6/Factory | Evolved 2 slots: Power x1, Propulsion x1 2925 | -6/Factory | Build established: Scavenger-Mutant 3066 | -6/Factory | Core integrity fell below 50% 3079 | -6/Factory | Lost 9 parts (1p4n1u3w) 3276 | -6/Factory | Discovered new exit (range 6) 3283 | -6/Factory | Entered Lower Caves 3392 | -6/Lower Caves | Encountered a Warlord checkpoint 3524 | -6/Lower Caves | Discovered new exit (range 5) 3526 | -6/Lower Caves | Entered another Lower Caves area 3634 | -6/Lower Caves | Build established: Derelict-Gunner 3664 | -6/Lower Caves | Discovered new exit (range 5) 3676 | -6/Lower Caves | Entered Factory 3676 | -5/Factory | Evolved 2 slots: Utility x2 3946 | -5/Factory | Spotted B-75 Beast 4093 | -5/Factory | Lost 11 parts (1p4n1u5w) 4257 | -5/Factory | System corruption reached 10% 4269 | -5/Factory | Core integrity fell below 50% 4287 | -5/Factory | Released all parts (3) 4301 | -5/Factory | Build established: Mutant 4309 | -5/Factory | Lost 4 parts (1p2n1w) 4322 | -5/Factory | Core integrity fell below 20% 4328 | -5/Factory | Destroyed by P-70 Sage with High-powered Shock Rifle Last Messages --------------- station. Backup Power III tumbles out of repair station. Backup Plating III tumbles out of repair station. Backup Propulsion III tumbles out of repair station. Backup Power III tumbles out of repair station. Backup Propulsion III tumbles out of repair station. P-70 Sage destroyed. Backup Laser III tumbles out of repair station. Backup Propulsion III tumbles out of repair station. Fusion Modulator explodes. Backup Propulsion III tumbles out of repair station. Backup Power III tumbles out of repair station. Subcomponent Replicator disabled. Acquired Antigrav System. Dropped Antigrav System. Map ----- +----------------------------------------------------+ | # " """" # """ """ """ #???????? | | # " """" # """ """ """ #???????? | | " " """" # """ """ """ #???????? | | " " """" # #???????? | | " | " ?# #???????? | | # % """##############+####+###???????? | | *% " = * # ^ #?????????? | | #""""""!"" !%= # #?????????? | | # " = # #?????????? | | ##### ### + ^ #?????????? | | #?####?# !! # ##+########??? | | #??????# # # #??? | | #??????# ! # # """ "" #??? | | #??????# ! # # """ """#??? | | #??????# # # """ R"#??? | | #??????# # + """#??? | | #??????# # # #??? | | #??????# # # #??? | | !#??????############## # #??? | | ########???############ #####+#####??? | | ! #???? | | #???? | | " """"" #???? | | " """"" #???? | | """ #???? | | ######;; ;;;=@;### ###???? | | " """"" #??#; =[%![ # #?????? | | " """"" #??#; *= # #?????? | | """ #?# ; [=* " + #?????? | | #?# ; == " # #?????? | | " """"" #?# ; == p # #?????? | | " """"" #?##; !# #?????? | | """ ???# ;;;; ;;;### #?????? | | ???### ! |?# #?????? | | " """"" ????#! [ # #?????? | | " ""??? ?????# " " + #?????? | | "???????????+ """"" ! "R" # #?????? | | ???????????# """"" """ # #?????? | | ???????????#??? # #?????? | | ###?????????????????######???? #?????? | | ?????????????????????????????? #?????? | | ?????????????????????????????? ??????? | | ?????????????????????????????? ????????? | | ?????????????????????????????????????????? | | ?????????????????????????????????????????? | | ?????????????????????????????????????????? | | ?????????????????????????????????????????? | | ?????????????????????????????????????????? | | ?????????????????????????????????????????? | | ?????????????????????????????????????????? | +----------------------------------------------------+ Best States ------------- Heat Dissipation 70 Energy Generation 34 Energy Capacity 760 Matter Stores 300 Matter Capacity 300 Sight Range 16 Terrain Scan Range 14 Terrain Scan Density 10 Jamming Range 14 Armor Coverage 600 Evasion (%) 53 Targeting Accuracy 6 Recoil Reduction 3 Item Schematics ----------------- None Robot Schematics ------------------ None Fabricated ------------ Nothing Alien Tech Used ----------------- None Achievements -------------- More Dakka Please Please Form A Line Serviceable Loadout System Compromised Total Silence Challenges ------------ None Game ------ Seed FactoryDefenseClaws Manual? 0 Play Time 00:56:17 Cumulative 2.6 hours Start 2024.04.02 @ 06:37:42 End 2024.04.02 @ 13:45:01 Sessions 3 Manual Loads 0 Difficulty Rogue Special Mode None Game No. 5 Rogue 5 Adventurer 0 Explorer 0 Win Type - Total 0 Types 0/0/0/0/0/0/0/0/0 Lore% 7 Gallery% 7 Achievement% 7 Wizard Run 0 Options --------- Layout 1 ASCII 0 Keyboard 0 Movement Numpad Keybinds 0 Fullscreen 2 Font 32/SmallcapsGlow Map View 50x35 Zoom Use 0% Tactical HUD 0 Map Filters NONE Filters NONE Steam 0 RUN: 305ffa5b-709c-4960-93a0-08336b23f108